[Event "Titled Tuesday Blitz July 6 2021"]
[White "Sardana, Rishi"]
[Black "Gelman, Alexander"]
[WhiteFideId "25004301"]
[BlackFideId "4118316"]
[WhiteElo "2340"]
[BlackElo "2375"]
[Result "1-0"]
[Round "09"]
[TimeControl "180+1"]
[Date "2021.07.06"]
[WhiteClock "0:00:20"]
[BlackClock "0:00:07"]

1. d4 {[%clk 0:02:59]}  Nf6 {[%clk 0:02:59]} 2. Nf3 {[%clk 0:02:59]}  c5 {[%clk 0:02:59]} 3. d5 {[%clk 0:02:59]}  e6 {[%clk 0:02:58]} 4. Nc3 {[%clk 0:02:56]}  b5 {[%clk 0:02:59]} 5. dxe6 {[%clk 0:02:22]}  fxe6 {[%clk 0:03:00]} 6. Nxb5 {[%clk 0:02:21]}  d5 {[%clk 0:02:59]} 7. e3 {[%clk 0:02:20]}  a6 {[%clk 0:02:57]} 8. Nc3 {[%clk 0:02:19]}  Bb7 {[%clk 0:02:42]} 9. e4 {[%clk 0:01:57]}  d4 {[%clk 0:02:22]} 10. e5 {[%clk 0:01:52]}  Nfd7 {[%clk 0:02:11]} 11. Nb1 {[%clk 0:01:47]}  Nc6 {[%clk 0:02:09]} 12. Bc4 {[%clk 0:01:37]}  Nb6 {[%clk 0:01:25]} 13. Bxe6 {[%clk 0:00:55]}  Qe7 {[%clk 0:01:25]} 14. Ng5 {[%clk 0:00:55]}  Nxe5 {[%clk 0:01:15]} 15. O-O {[%clk 0:00:53]}  h6 {[%clk 0:01:12]} 16. Re1 {[%clk 0:00:42]}  hxg5 {[%clk 0:00:52]} 17. Rxe5 {[%clk 0:00:39]}  Qf6 {[%clk 0:00:45]} 18. Qe2 {[%clk 0:00:37]}  Bd6 {[%clk 0:00:43]} 19. Rf5 {[%clk 0:00:24]}  Qh6 {[%clk 0:00:15]} 20. h3 {[%clk 0:00:20]}  Kd8 {[%clk 0:00:07]} 21. Bxg5+ {[%clk 0:00:19]}  Qxg5 {[%clk 0:00:07]} 22. Rxg5 {[%clk 0:00:20]} 1-0


[Site "https://www.chess.com"]

[Event "Titled Tuesday Blitz July 6 2021"]
[White "Sawlin, Leonid"]
[Black "Zubritskiy, Artyom"]
[WhiteFideId "4689542"]
[BlackFideId "4181247"]
[WhiteElo "2412"]
[BlackElo "2559"]
[Result "1-0"]
[Round "09"]
[TimeControl "180+1"]
[Date "2021.07.06"]
[WhiteClock "0:01:01"]
[BlackClock "0:00:02"]

1. e4 {[%clk 0:03:00]}  c5 {[%clk 0:02:57]} 2. Nf3 {[%clk 0:03:00]}  d6 {[%clk 0:02:57]} 3. d4 {[%clk 0:03:00]}  cxd4 {[%clk 0:02:57]} 4. Nxd4 {[%clk 0:03:01]}  Nf6 {[%clk 0:02:58]} 5. Nc3 {[%clk 0:03:02]}  a6 {[%clk 0:02:58]} 6. Bg5 {[%clk 0:03:03]}  Nbd7 {[%clk 0:02:58]} 7. f4 {[%clk 0:03:03]}  Qc7 {[%clk 0:02:55]} 8. Qe2 {[%clk 0:03:03]}  h6 {[%clk 0:02:53]} 9. Bh4 {[%clk 0:03:03]}  g5 {[%clk 0:02:48]} 10. fxg5 {[%clk 0:03:02]}  hxg5 {[%clk 0:02:49]} 11. Bxg5 {[%clk 0:03:03]}  Qc5 {[%clk 0:02:50]} 12. Be3 {[%clk 0:03:03]}  Qb4 {[%clk 0:02:24]} 13. O-O-O {[%clk 0:03:02]}  Ne5 {[%clk 0:02:24]} 14. a3 {[%clk 0:03:02]}  Qa5 {[%clk 0:02:22]} 15. h3 {[%clk 0:02:55]}  Neg4 {[%clk 0:01:47]} 16. Bg1 {[%clk 0:02:54]}  Bh6+ {[%clk 0:01:46]} 17. Kb1 {[%clk 0:02:54]}  Bf4 {[%clk 0:01:44]} 18. Nf3 {[%clk 0:02:32]}  Be6 {[%clk 0:01:36]} 19. Bd4 {[%clk 0:02:32]}  Ne5 {[%clk 0:01:26]} 20. Rg1 {[%clk 0:02:20]}  Rc8 {[%clk 0:01:22]} 21. g3 {[%clk 0:02:13]}  Nxf3 {[%clk 0:01:03]} 22. Qxf3 {[%clk 0:02:14]}  Be5 {[%clk 0:01:03]} 23. Bxe5 {[%clk 0:02:13]}  Qxe5 {[%clk 0:01:03]} 24. g4 {[%clk 0:02:13]}  Rc5 {[%clk 0:00:50]} 25. Bd3 {[%clk 0:02:06]}  Nd7 {[%clk 0:00:48]} 26. Ne2 {[%clk 0:01:55]}  Nb6 {[%clk 0:00:44]} 27. c3 {[%clk 0:01:51]}  Na4 {[%clk 0:00:18]} 28. Bc2 {[%clk 0:01:47]}  Nxb2 {[%clk 0:00:14]} 29. Kxb2 {[%clk 0:01:47]}  Rb5+ {[%clk 0:00:14]} 30. Kc1 {[%clk 0:01:47]}  Qc5 {[%clk 0:00:14]} 31. Nd4 {[%clk 0:01:44]}  Qxa3+ {[%clk 0:00:14]} 32. Kd2 {[%clk 0:01:45]}  Rb2 {[%clk 0:00:06]} 33. Rb1 {[%clk 0:01:45]}  Ba2 {[%clk 0:00:04]} 34. Rxb2 {[%clk 0:01:44]}  Qxb2 {[%clk 0:00:05]} 35. Rf1 {[%clk 0:01:37]}  Kd7 {[%clk 0:00:03]} 36. Qf5+ {[%clk 0:01:31]}  Kc7 {[%clk 0:00:04]} 37. Qa5+ {[%clk 0:01:30]}  Kb8 {[%clk 0:00:04]} 38. Rf3 {[%clk 0:01:16]}  e5 {[%clk 0:00:04]} 39. Nf5 {[%clk 0:01:03]}  Bb3 {[%clk 0:00:02]} 40. Ne3 {[%clk 0:01:03]}  Rc8 {[%clk 0:00:02]} 41. Qb4 {[%clk 0:01:01]} 1-0


[Site "https://www.chess.com"]

[Event "Titled Tuesday Blitz July 6 2021"]
[White "Shevelev, Dmitry"]
[Black "Vakhlamov, Igor L."]
[WhiteFideId "24233463"]
[BlackFideId "24126748"]
[WhiteElo "2478"]
[BlackElo "2416"]
[Result "1/2-1/2"]
[Round "09"]
[TimeControl "180+1"]
[Date "2021.07.06"]
[WhiteClock "0:00:05"]
[BlackClock "0:00:16"]

1. d4 {[%clk 0:03:00]}  d5 {[%clk 0:03:00]} 2. Nf3 {[%clk 0:03:01]}  Nf6 {[%clk 0:03:00]} 3. Nc3 {[%clk 0:03:02]}  Bf5 {[%clk 0:02:50]} 4. Bg5 {[%clk 0:02:59]}  e6 {[%clk 0:02:48]} 5. e3 {[%clk 0:02:50]}  h6 {[%clk 0:02:47]} 6. Bxf6 {[%clk 0:02:50]}  Qxf6 {[%clk 0:02:48]} 7. Bd3 {[%clk 0:02:51]}  Bb4 {[%clk 0:02:44]} 8. Qd2 {[%clk 0:02:43]}  O-O {[%clk 0:02:43]} 9. a3 {[%clk 0:02:39]}  Bd6 {[%clk 0:02:36]} 10. Nb5 {[%clk 0:02:29]}  Nc6 {[%clk 0:02:32]} 11. c4 {[%clk 0:02:12]}  dxc4 {[%clk 0:02:27]} 12. Bxc4 {[%clk 0:02:12]}  Be4 {[%clk 0:02:20]} 13. Be2 {[%clk 0:02:02]}  e5 {[%clk 0:02:08]} 14. dxe5 {[%clk 0:00:45]}  Nxe5 {[%clk 0:01:45]} 15. Nxd6 {[%clk 0:00:44]}  Bxf3 {[%clk 0:01:19]} 16. gxf3 {[%clk 0:00:35]}  Nxf3+ {[%clk 0:00:59]} 17. Bxf3 {[%clk 0:00:34]}  Qxf3 {[%clk 0:01:00]} 18. Rg1 {[%clk 0:00:21]}  cxd6 {[%clk 0:01:00]} 19. Qxd6 {[%clk 0:00:15]}  Kh8 {[%clk 0:01:00]} 20. Qg3 {[%clk 0:00:13]}  Qf6 {[%clk 0:01:00]} 21. O-O-O {[%clk 0:00:12]}  Rac8+ {[%clk 0:00:55]} 22. Kb1 {[%clk 0:00:12]}  g6 {[%clk 0:00:54]} 23. Rd4 {[%clk 0:00:07]}  Qf5+ {[%clk 0:00:53]} 24. e4 {[%clk 0:00:04]}  Qc5 {[%clk 0:00:53]} 25. Rgd1 {[%clk 0:00:03]}  Kg8 {[%clk 0:00:51]} 26. Qd3 {[%clk 0:00:01]}  Rfe8 {[%clk 0:00:50]} 27. f3 {[%clk 0:00:01]}  a5 {[%clk 0:00:49]} 28. h4 {[%clk 0:00:02]}  h5 {[%clk 0:00:48]} 29. Rd5 {[%clk 0:00:03]}  Qc7 {[%clk 0:00:48]} 30. Qe3 {[%clk 0:00:03]}  Qg3 {[%clk 0:00:46]} 31. Qh6 {[%clk 0:00:02]}  Qxh4 {[%clk 0:00:43]} 32. Rg5 {[%clk 0:00:02]}  Re6 {[%clk 0:00:41]} 33. Rdg1 {[%clk 0:00:02]}  Rcc6 {[%clk 0:00:37]} 34. Rxh5 {[%clk 0:00:02]}  Qf6 {[%clk 0:00:35]} 35. Qh7+ {[%clk 0:00:02]}  Kf8 {[%clk 0:00:35]} 36. Qh8+ {[%clk 0:00:03]}  Qxh8 {[%clk 0:00:35]} 37. Rxh8+ {[%clk 0:00:04]}  Kg7 {[%clk 0:00:34]} 38. Rb8 {[%clk 0:00:04]}  Rc7 {[%clk 0:00:34]} 39. Rd1 {[%clk 0:00:05]}  Re5 {[%clk 0:00:23]} 40. Rd3 {[%clk 0:00:05]}  f5 {[%clk 0:00:23]} 41. Rdd8 {[%clk 0:00:03]}  fxe4 {[%clk 0:00:23]} 42. fxe4 {[%clk 0:00:04]}  Rxe4 {[%clk 0:00:23]} 43. Rg8+ {[%clk 0:00:05]}  Kf6 {[%clk 0:00:23]} 44. Rbf8+ {[%clk 0:00:06]}  Kg5 {[%clk 0:00:23]} 45. Rd8 {[%clk 0:00:06]}  Rc5 {[%clk 0:00:22]} 46. Rd6 {[%clk 0:00:06]}  a4 {[%clk 0:00:20]} 47. Rdxg6+ {[%clk 0:00:05]}  Kf4 {[%clk 0:00:20]} 48. Rg4+ {[%clk 0:00:05]}  Ke3 {[%clk 0:00:20]} 49. Rxe4+ {[%clk 0:00:05]}  Kxe4 {[%clk 0:00:21]} 50. Rg4+ {[%clk 0:00:05]}  Kd5 {[%clk 0:00:22]} 51. Rxa4 {[%clk 0:00:06]}  Kc6 {[%clk 0:00:22]} 52. Rb4 {[%clk 0:00:07]}  Rh5 {[%clk 0:00:22]} 53. Ka2 {[%clk 0:00:07]}  b5 {[%clk 0:00:23]} 54. Rb3 {[%clk 0:00:07]}  Rh4 {[%clk 0:00:23]} 55. Rc3+ {[%clk 0:00:08]}  Kb6 {[%clk 0:00:23]} 56. Kb3 {[%clk 0:00:09]}  Ka5 {[%clk 0:00:23]} 57. Rg3 {[%clk 0:00:09]}  Rf4 {[%clk 0:00:23]} 58. Rg5 {[%clk 0:00:10]}  Rf3+ {[%clk 0:00:23]} 59. Ka2 {[%clk 0:00:10]}  Rh3 {[%clk 0:00:23]} 60. Rg8 {[%clk 0:00:10]}  Kb6 {[%clk 0:00:23]} 61. Ra8 {[%clk 0:00:11]}  Kb7 {[%clk 0:00:23]} 62. Rg8 {[%clk 0:00:10]}  Kb6 {[%clk 0:00:23]} 63. Rg5 {[%clk 0:00:11]}  Rf3 {[%clk 0:00:23]} 64. Rg6+ {[%clk 0:00:10]}  Kc5 {[%clk 0:00:21]} 65. Rg2 {[%clk 0:00:11]}  Rh3 {[%clk 0:00:21]} 66. Rc2+ {[%clk 0:00:11]}  Kb6 {[%clk 0:00:21]} 67. Rc3 {[%clk 0:00:11]}  Rh4 {[%clk 0:00:22]} 68. Kb3 {[%clk 0:00:12]}  Rg4 {[%clk 0:00:22]} 69. Rf3 {[%clk 0:00:12]}  Rh4 {[%clk 0:00:23]} 70. Rd3 {[%clk 0:00:10]}  Kc5 {[%clk 0:00:23]} 71. Kc3 {[%clk 0:00:10]}  Rc4+ {[%clk 0:00:22]} 72. Kb3 {[%clk 0:00:10]}  Rh4 {[%clk 0:00:23]} 73. Rd2 {[%clk 0:00:10]}  Rh3+ {[%clk 0:00:23]} 74. Kc2 {[%clk 0:00:10]}  Rh4 {[%clk 0:00:23]} 75. Rd3 {[%clk 0:00:10]}  Rh2+ {[%clk 0:00:23]} 76. Kb1 {[%clk 0:00:10]}  Rh4 {[%clk 0:00:24]} 77. Rd8 {[%clk 0:00:07]}  Rh3 {[%clk 0:00:23]} 78. Rc8+ {[%clk 0:00:07]}  Kb6 {[%clk 0:00:23]} 79. Ra8 {[%clk 0:00:06]}  Kc5 {[%clk 0:00:23]} 80. a4 {[%clk 0:00:06]}  Kb4 {[%clk 0:00:14]} 81. axb5 {[%clk 0:00:03]}  Kxb5 {[%clk 0:00:15]} 82. Ka2 {[%clk 0:00:02]}  Rg3 {[%clk 0:00:15]} 83. Rb8+ {[%clk 0:00:01]}  Ka4 {[%clk 0:00:14]} 84. Ra8+ {[%clk 0:00:02]}  Kb4 {[%clk 0:00:14]} 85. Ra3 {[%clk 0:00:03]}  Rg2 {[%clk 0:00:14]} 86. Rb3+ {[%clk 0:00:03]}  Ka4 {[%clk 0:00:14]} 87. Ra3+ {[%clk 0:00:04]}  Kb4 {[%clk 0:00:15]} 88. Rc3 {[%clk 0:00:04]}  Ka4 {[%clk 0:00:15]} 89. Ra3+ {[%clk 0:00:05]}  Kb4 {[%clk 0:00:16]} 1/2-1/2


[Site "https://www.chess.com"]

[Event "Titled Tuesday Blitz July 6 2021"]
[White "Solon, Nathan"]
[Black "Moroni, Luca Jr"]
[WhiteFideId "2017229"]
[BlackFideId "865834"]
[WhiteElo "2638"]
[BlackElo "2491"]
[Result "1/2-1/2"]
[Round "09"]
[TimeControl "180+1"]
[Date "2021.07.06"]
[WhiteClock "0:00:12"]
[BlackClock "0:00:13"]

1. d4 {[%clk 0:03:00]}  g6 {[%clk 0:02:56]} 2. c4 {[%clk 0:02:59]}  Bg7 {[%clk 0:02:56]} 3. g3 {[%clk 0:02:59]}  d6 {[%clk 0:02:56]} 4. Bg2 {[%clk 0:02:59]}  Nc6 {[%clk 0:02:54]} 5. Nf3 {[%clk 0:02:50]}  Bd7 {[%clk 0:02:53]} 6. Nc3 {[%clk 0:02:46]}  Qc8 {[%clk 0:02:51]} 7. h3 {[%clk 0:02:44]}  Nf6 {[%clk 0:02:46]} 8. e4 {[%clk 0:02:42]}  O-O {[%clk 0:02:37]} 9. Be3 {[%clk 0:02:42]}  e5 {[%clk 0:02:37]} 10. d5 {[%clk 0:02:37]}  Ne7 {[%clk 0:02:36]} 11. c5 {[%clk 0:02:31]}  Nh5 {[%clk 0:02:21]} 12. Rc1 {[%clk 0:02:25]}  f5 {[%clk 0:02:07]} 13. cxd6 {[%clk 0:02:24]}  cxd6 {[%clk 0:02:08]} 14. exf5 {[%clk 0:02:08]}  Nxf5 {[%clk 0:02:06]} 15. Bg5 {[%clk 0:01:54]}  e4 {[%clk 0:01:49]} 16. Nxe4 {[%clk 0:01:42]}  Qe8 {[%clk 0:01:46]} 17. Nd2 {[%clk 0:01:34]}  Nfxg3 {[%clk 0:01:21]} 18. fxg3 {[%clk 0:01:26]}  Nxg3 {[%clk 0:01:21]} 19. Qb3 {[%clk 0:01:06]}  Nxh1 {[%clk 0:01:16]} 20. Bxh1 {[%clk 0:01:07]}  Qe5 {[%clk 0:01:13]} 21. Qg3 {[%clk 0:01:00]}  Qxb2 {[%clk 0:01:02]} 22. Rb1 {[%clk 0:00:57]}  Qxa2 {[%clk 0:00:57]} 23. Rxb7 {[%clk 0:00:47]}  Bf5 {[%clk 0:00:56]} 24. Rxg7+ {[%clk 0:00:37]}  Kxg7 {[%clk 0:00:51]} 25. Qc3+ {[%clk 0:00:38]}  Kg8 {[%clk 0:00:25]} 26. Bh6 {[%clk 0:00:38]}  Rf7 {[%clk 0:00:19]} 27. Nf6+ {[%clk 0:00:34]}  Kh8 {[%clk 0:00:17]} 28. Nfe4+ {[%clk 0:00:27]}  Kg8 {[%clk 0:00:16]} 29. Nf6+ {[%clk 0:00:27]}  Kh8 {[%clk 0:00:17]} 30. Be4 {[%clk 0:00:19]}  Bxe4 {[%clk 0:00:12]} 31. Nfxe4+ {[%clk 0:00:17]}  Kg8 {[%clk 0:00:12]} 32. Nf6+ {[%clk 0:00:18]}  Kh8 {[%clk 0:00:12]} 33. Nfe4+ {[%clk 0:00:11]}  Kg8 {[%clk 0:00:12]} 34. Nf6+ {[%clk 0:00:12]}  Kh8 {[%clk 0:00:13]} 35. Nfe4+ {[%clk 0:00:12]} 1/2-1/2


[Site "https://www.chess.com"]

[Event "Titled Tuesday Blitz July 6 2021"]
[White "Spata, German"]
[Black "Grineva, Marianna"]
[WhiteFideId "113026"]
[BlackFideId "14102013"]
[WhiteElo "2238"]
[BlackElo "1925"]
[Result "1-0"]
[Round "09"]
[TimeControl "180+1"]
[Date "2021.07.06"]
[WhiteClock "0:00:05"]
[BlackClock "0:00:01"]

1. b3 {[%clk 0:03:00]}  e6 {[%clk 0:01:57]} 2. Bb2 {[%clk 0:02:59]}  d5 {[%clk 0:01:58]} 3. f4 {[%clk 0:02:58]}  Nf6 {[%clk 0:01:58]} 4. Nf3 {[%clk 0:02:57]}  Be7 {[%clk 0:01:59]} 5. e3 {[%clk 0:02:58]}  O-O {[%clk 0:01:59]} 6. Bd3 {[%clk 0:02:58]}  c5 {[%clk 0:02:00]} 7. O-O {[%clk 0:02:58]}  Ne4 {[%clk 0:01:58]} 8. Nc3 {[%clk 0:02:56]}  Bf6 {[%clk 0:01:57]} 9. Ne5 {[%clk 0:02:48]}  Nxc3 {[%clk 0:01:55]} 10. Bxc3 {[%clk 0:02:48]}  Nc6 {[%clk 0:01:55]} 11. Qh5 {[%clk 0:02:35]}  g6 {[%clk 0:01:53]} 12. Qh6 {[%clk 0:02:32]}  d4 {[%clk 0:01:51]} 13. Nxc6 {[%clk 0:02:24]}  bxc6 {[%clk 0:01:49]} 14. Bb2 {[%clk 0:02:23]}  dxe3 {[%clk 0:01:45]} 15. Bxf6 {[%clk 0:02:21]}  Qxf6 {[%clk 0:01:46]} 16. dxe3 {[%clk 0:02:21]}  a5 {[%clk 0:01:36]} 17. e4 {[%clk 0:02:17]}  Qd4+ {[%clk 0:01:34]} 18. Kh1 {[%clk 0:02:14]}  Ba6 {[%clk 0:01:31]} 19. f5 {[%clk 0:02:08]}  exf5 {[%clk 0:01:23]} 20. exf5 {[%clk 0:02:06]}  Qg7 {[%clk 0:01:21]} 21. Qh3 {[%clk 0:01:45]}  Bxd3 {[%clk 0:01:04]} 22. f6 {[%clk 0:01:40]}  Qh8 {[%clk 0:01:02]} 23. Qxd3 {[%clk 0:01:34]}  Rad8 {[%clk 0:01:02]} 24. Qa6 {[%clk 0:01:14]}  Rd6 {[%clk 0:00:59]} 25. Qxa5 {[%clk 0:01:10]}  Rxf6 {[%clk 0:00:59]} 26. Qxc5 {[%clk 0:01:08]}  Re8 {[%clk 0:00:52]} 27. h3 {[%clk 0:01:03]}  Rfe6 {[%clk 0:00:49]} 28. Rad1 {[%clk 0:00:51]}  Qg7 {[%clk 0:00:40]} 29. a4 {[%clk 0:00:46]}  h5 {[%clk 0:00:32]} 30. a5 {[%clk 0:00:44]}  Qh6 {[%clk 0:00:17]} 31. a6 {[%clk 0:00:39]}  Ra8 {[%clk 0:00:15]} 32. Qb6 {[%clk 0:00:29]}  Qg5 {[%clk 0:00:14]} 33. Qb7 {[%clk 0:00:21]}  Rf8 {[%clk 0:00:14]} 34. a7 {[%clk 0:00:18]}  Re2 {[%clk 0:00:07]} 35. Qxc6 {[%clk 0:00:14]}  Ree8 {[%clk 0:00:06]} 36. Ra1 {[%clk 0:00:11]}  Ra8 {[%clk 0:00:06]} 37. b4 {[%clk 0:00:08]}  h4 {[%clk 0:00:06]} 38. b5 {[%clk 0:00:08]}  Rfc8 {[%clk 0:00:05]} 39. Qxc8+ {[%clk 0:00:07]}  Rxc8 {[%clk 0:00:04]} 40. a8=Q {[%clk 0:00:07]}  Rxa8 {[%clk 0:00:04]} 41. Rxa8+ {[%clk 0:00:08]}  Kg7 {[%clk 0:00:04]} 42. b6 {[%clk 0:00:08]}  Qb5 {[%clk 0:00:04]} 43. Raa1 {[%clk 0:00:07]}  Qxb6 {[%clk 0:00:04]} 44. c4 {[%clk 0:00:07]}  Qc5 {[%clk 0:00:05]} 45. Rac1 {[%clk 0:00:07]}  g5 {[%clk 0:00:05]} 46. Rfd1 {[%clk 0:00:07]}  Kg6 {[%clk 0:00:04]} 47. Rd5 {[%clk 0:00:08]}  Qc6 {[%clk 0:00:04]} 48. Rdd1 {[%clk 0:00:07]}  f6 {[%clk 0:00:04]} 49. c5 {[%clk 0:00:07]}  g4 {[%clk 0:00:04]} 50. hxg4 {[%clk 0:00:06]}  h3 {[%clk 0:00:03]} 51. Rd2 {[%clk 0:00:07]}  Qe4 {[%clk 0:00:01]} 52. c6 {[%clk 0:00:06]}  Qe3 {[%clk 0:00:01]} 53. Rcd1 {[%clk 0:00:05]} 1-0


[Site "https://www.chess.com"]

[Event "Titled Tuesday Blitz July 6 2021"]
[White "Stojanovski, Sandi"]
[Black "Williams, Simon K"]
[WhiteFideId "1403249"]
[BlackFideId "404454"]
[WhiteElo "2368"]
[BlackElo "2468"]
[Result "0-1"]
[Round "09"]
[TimeControl "180+1"]
[Date "2021.07.06"]
[WhiteClock "0:00:01"]
[BlackClock "0:00:05"]

1. c4 {[%clk 0:03:00]}  f5 {[%clk 0:02:56]} 2. g3 {[%clk 0:02:48]}  Nf6 {[%clk 0:02:56]} 3. Bg2 {[%clk 0:02:48]}  d6 {[%clk 0:02:55]} 4. Nc3 {[%clk 0:02:42]}  e5 {[%clk 0:02:55]} 5. d3 {[%clk 0:02:42]}  Be7 {[%clk 0:02:55]} 6. e4 {[%clk 0:02:35]}  O-O {[%clk 0:02:52]} 7. Nge2 {[%clk 0:02:35]}  Nc6 {[%clk 0:02:47]} 8. O-O {[%clk 0:02:34]}  Qe8 {[%clk 0:02:47]} 9. Nd5 {[%clk 0:02:28]}  Bd8 {[%clk 0:02:46]} 10. Bg5 {[%clk 0:01:36]}  Nxd5 {[%clk 0:02:14]} 11. Bxd8 {[%clk 0:01:03]}  Ne3 {[%clk 0:01:55]} 12. fxe3 {[%clk 0:01:02]}  Qxd8 {[%clk 0:01:48]} 13. Nc3 {[%clk 0:01:00]}  Ne7 {[%clk 0:01:33]} 14. Qh5 {[%clk 0:00:48]}  c6 {[%clk 0:01:23]} 15. Bh3 {[%clk 0:00:39]}  g6 {[%clk 0:01:07]} 16. Qh6 {[%clk 0:00:36]}  Be6 {[%clk 0:01:05]} 17. exf5 {[%clk 0:00:19]}  Bxf5 {[%clk 0:01:03]} 18. Ne4 {[%clk 0:00:09]}  Rf7 {[%clk 0:00:16]} 19. Qh4 {[%clk 0:00:07]}  Qd7 {[%clk 0:00:12]} 20. Ng5 {[%clk 0:00:05]}  Rg7 {[%clk 0:00:11]} 21. e4 {[%clk 0:00:03]}  Bxh3 {[%clk 0:00:11]} 22. Nxh3 {[%clk 0:00:04]}  Rf8 {[%clk 0:00:06]} 23. Ng5 {[%clk 0:00:04]}  Nc8 {[%clk 0:00:05]} 24. Rxf8+ {[%clk 0:00:04]}  Kxf8 {[%clk 0:00:05]} 25. Rf1+ {[%clk 0:00:04]}  Kg8 {[%clk 0:00:06]} 26. h3 {[%clk 0:00:02]}  Nb6 {[%clk 0:00:05]} 27. b3 {[%clk 0:00:02]}  Qe7 {[%clk 0:00:06]} 28. Kg2 {[%clk 0:00:01]}  Nd7 {[%clk 0:00:05]} 0-1


[Site "https://www.chess.com"]

[Event "Titled Tuesday Blitz July 6 2021"]
[White "Sychev, Klementy"]
[Black "Chen, Max"]
[WhiteFideId "4114060"]
[BlackFideId "2622440"]
[WhiteElo "2615"]
[BlackElo "2488"]
[Result "1-0"]
[Round "09"]
[TimeControl "180+1"]
[Date "2021.07.06"]
[WhiteClock "0:01:01"]
[BlackClock "0:00:33"]

1. e4 {[%clk 0:03:00]}  c6 {[%clk 0:02:58]} 2. d3 {[%clk 0:02:54]}  d5 {[%clk 0:02:57]} 3. Nd2 {[%clk 0:02:54]}  dxe4 {[%clk 0:02:58]} 4. dxe4 {[%clk 0:02:54]}  e5 {[%clk 0:02:57]} 5. Ngf3 {[%clk 0:02:54]}  Qc7 {[%clk 0:02:55]} 6. Bc4 {[%clk 0:02:52]}  Nd7 {[%clk 0:02:53]} 7. Ng5 {[%clk 0:02:52]}  Nh6 {[%clk 0:02:50]} 8. O-O {[%clk 0:02:44]}  Nb6 {[%clk 0:02:49]} 9. Bb3 {[%clk 0:02:43]}  Be7 {[%clk 0:02:47]} 10. Ndf3 {[%clk 0:02:42]}  f6 {[%clk 0:02:41]} 11. Ne6 {[%clk 0:02:40]}  Bxe6 {[%clk 0:02:41]} 12. Bxe6 {[%clk 0:02:41]}  Nf7 {[%clk 0:02:41]} 13. c3 {[%clk 0:02:35]}  O-O {[%clk 0:02:40]} 14. Qe2 {[%clk 0:02:35]}  Rad8 {[%clk 0:02:34]} 15. a4 {[%clk 0:02:35]}  a5 {[%clk 0:02:31]} 16. Be3 {[%clk 0:02:32]}  Nd7 {[%clk 0:02:31]} 17. Nh4 {[%clk 0:02:28]}  Nc5 {[%clk 0:02:29]} 18. Ba2 {[%clk 0:02:06]}  g6 {[%clk 0:02:22]} 19. Bh6 {[%clk 0:01:44]}  Rfe8 {[%clk 0:02:22]} 20. Qg4 {[%clk 0:01:44]}  Qd7 {[%clk 0:01:56]} 21. Qf3 {[%clk 0:01:30]}  f5 {[%clk 0:01:43]} 22. Nxf5 {[%clk 0:01:26]}  Bf8 {[%clk 0:01:25]} 23. Bxf8 {[%clk 0:01:21]}  Rxf8 {[%clk 0:01:25]} 24. Nh6+ {[%clk 0:01:19]}  Kg7 {[%clk 0:01:25]} 25. Nxf7 {[%clk 0:01:19]}  Qe7 {[%clk 0:00:59]} 26. Qe3 {[%clk 0:01:17]}  Rxf7 {[%clk 0:00:58]} 27. Bxf7 {[%clk 0:01:18]}  Kxf7 {[%clk 0:00:59]} 28. Rfd1 {[%clk 0:01:15]}  Rd6 {[%clk 0:00:51]} 29. g3 {[%clk 0:01:11]}  Ne6 {[%clk 0:00:50]} 30. Kg2 {[%clk 0:01:11]}  c5 {[%clk 0:00:48]} 31. Rd5 {[%clk 0:01:09]}  Rb6 {[%clk 0:00:45]} 32. Rxe5 {[%clk 0:01:08]}  Qc7 {[%clk 0:00:43]} 33. Rd5 {[%clk 0:01:07]}  Rxb2 {[%clk 0:00:43]} 34. Rad1 {[%clk 0:01:07]}  Nf8 {[%clk 0:00:41]} 35. Rxc5 {[%clk 0:01:05]}  Qe7 {[%clk 0:00:35]} 36. Qf4+ {[%clk 0:01:04]}  Kg8 {[%clk 0:00:35]} 37. Rc7 {[%clk 0:01:03]}  Qe8 {[%clk 0:00:33]} 38. Rd8 {[%clk 0:01:01]} 1-0


[Site "https://www.chess.com"]

[Event "Titled Tuesday Blitz July 6 2021"]
[White "Tejedor Fuente, Enrique"]
[Black "Obolentseva, Alexandra"]
[WhiteFideId "2299100"]
[BlackFideId "24153648"]
[WhiteElo "2535"]
[BlackElo "2113"]
[Result "1-0"]
[Round "09"]
[TimeControl "180+1"]
[Date "2021.07.06"]
[WhiteClock "0:00:52"]
[BlackClock "0:00:40"]

1. e4 {[%clk 0:03:00]}  c5 {[%clk 0:02:57]} 2. Nc3 {[%clk 0:02:59]}  Nc6 {[%clk 0:02:54]} 3. Bb5 {[%clk 0:02:59]}  d6 {[%clk 0:02:47]} 4. d4 {[%clk 0:02:54]}  cxd4 {[%clk 0:02:46]} 5. Qxd4 {[%clk 0:02:53]}  Bd7 {[%clk 0:02:46]} 6. Bxc6 {[%clk 0:02:53]}  Bxc6 {[%clk 0:02:47]} 7. Nf3 {[%clk 0:02:54]}  Nf6 {[%clk 0:02:46]} 8. Bg5 {[%clk 0:02:53]}  e6 {[%clk 0:02:44]} 9. O-O-O {[%clk 0:02:39]}  Be7 {[%clk 0:02:44]} 10. Rhe1 {[%clk 0:02:20]}  O-O {[%clk 0:02:43]} 11. Kb1 {[%clk 0:02:19]}  Qa5 {[%clk 0:02:34]} 12. Qd2 {[%clk 0:01:39]}  Qa6 {[%clk 0:02:12]} 13. h4 {[%clk 0:01:32]}  Rac8 {[%clk 0:02:08]} 14. h5 {[%clk 0:01:32]}  h6 {[%clk 0:02:03]} 15. Bxh6 {[%clk 0:01:32]}  gxh6 {[%clk 0:02:00]} 16. Qxh6 {[%clk 0:01:33]}  Qa5 {[%clk 0:01:44]} 17. e5 {[%clk 0:01:31]}  Ng4 {[%clk 0:01:40]} 18. Qf4 {[%clk 0:01:29]}  f5 {[%clk 0:01:26]} 19. exf6 {[%clk 0:01:23]}  Nxf6 {[%clk 0:01:23]} 20. Rxe6 {[%clk 0:01:23]}  Rf7 {[%clk 0:01:19]} 21. Rxe7 {[%clk 0:01:18]}  Rxe7 {[%clk 0:01:19]} 22. Qxf6 {[%clk 0:01:17]}  Rf7 {[%clk 0:01:19]} 23. Qg6+ {[%clk 0:01:17]}  Kf8 {[%clk 0:01:16]} 24. Ng5 {[%clk 0:01:17]}  Rxf2 {[%clk 0:01:10]} 25. Qxd6+ {[%clk 0:01:14]}  Kg7 {[%clk 0:01:00]} 26. Qg6+ {[%clk 0:01:14]}  Kf8 {[%clk 0:00:59]} 27. Nh7+ {[%clk 0:01:14]}  Ke7 {[%clk 0:00:58]} 28. Qg7+ {[%clk 0:01:06]}  Ke6 {[%clk 0:00:54]} 29. Ng5+ {[%clk 0:01:01]}  Kf5 {[%clk 0:00:53]} 30. g4+ {[%clk 0:00:59]}  Kf4 {[%clk 0:00:53]} 31. Nh3+ {[%clk 0:00:56]}  Kg3 {[%clk 0:00:53]} 32. Nxf2 {[%clk 0:00:55]}  Bf3 {[%clk 0:00:51]} 33. Nfe4+ {[%clk 0:00:53]}  Kg2 {[%clk 0:00:46]} 34. Qd4 {[%clk 0:00:52]}  Bxd1 {[%clk 0:00:41]} 35. Qf2+ {[%clk 0:00:52]}  Kh1 {[%clk 0:00:40]} 36. Ng3# {[%clk 0:00:52]} 1-0


[Site "https://www.chess.com"]